bitfinex/quotes_SOLUSD_20250912
["timestamp","ask_amount","ask_price","bid_price","bid_amount"]
[1757714587716,0.1,240.49,240.45,32.82]
[1757714587929,0.1,240.49,240.46,0.7]
[1757714588129,0.1,240.49,240.47,0.7]
[1757714588437,0.71,240.48,240.41,33.52]
[1757714588932,0.1,240.49,240.42,0.7]
[1757714589137,0.1,240.64,240.58,13.59559401]
[1757714589337,0.1,240.64,240.63,39.59559401]
[1757714589633,0.1,240.79,240.68,13.59559401]
[1757714589833,0.1,240.79,240.68,47.29559401]
[1757714590034,0.1,240.79,240.68,47.99559401]
[1757714590843,0.1,240.79,240.7,13.59559401]
[1757714591211,0.1,240.79,240.71,0.7]
[1757714591411,0.1,240.79,240.72,13.59559401]
[1757714591630,0.1,240.79,240.73,0.7]
[1757714591819,0.1,240.79,240.74,13.59559401]
[1757714592013,0.1,240.79,240.69,13.59559401]
[1757714592328,0.1,240.79,240.72,13.59559401]
[1757714592723,0.1,240.79,240.74,13.59559401]
[1757714593141,0.1,240.79,240.75,0.7]
[1757714593328,0.1,240.79,240.76,13.59559401]
[1757714593518,0.1,240.79,240.75,0.7]
[1757714593719,0.1,240.79,240.76,0.7]
[1757714593925,0.1,240.79,240.73,33.68]
[1757714594112,0.1,240.79,240.74,13.59559401]
[1757714594316,0.1,240.79,240.74,14.29559401]
[1757714594514,0.1,240.79,240.73,33.68]
[1757714594515,0.1,240.79,240.75,0.7]
[1757714594714,0.1,240.79,240.74,13.59559401]
[1757714594939,0.1,240.79,240.7,13.59559401]
[1757714595125,0.1,240.79,240.71,0.7]
[1757714595734,0.71,240.78,240.68,14.29559401]
[1757714595935,0.71,240.78,240.68,40.29559401]
[1757714596133,0.71,240.78,240.7,13.59559401]
[1757714596319,0.71,240.78,240.69,0.7]
[1757714596527,0.71,240.77,240.68,13.59559401]
[1757714596834,26.1,240.79,240.7,13.59559401]
[1757714596835,0.1,240.79,240.7,13.59559401]
[1757714597034,0.1,240.79,240.76,13.59559401]
[1757714597749,0.1,240.79,240.78,13.59559401]
[1757714598117,0.1,240.79,240.78,0.7]
[1757714598320,0.1,240.79,240.78,14.29559401]
[1757714598631,0.1,240.79,240.77,26.0]
[1757714599132,0.1,240.79,240.77,26.7]
[1757714599734,0.1,240.79,240.78,14.29559401]
[1757714599922,0.1,240.89,240.81,26.0]
[1757714600121,0.1,240.89,240.82,26.0]
[1757714600342,0.1,240.89,240.84,13.59559401]
[1757714600854,0.1,240.89,240.86,13.59559401]
[1757714601231,0.1,240.89,240.88,13.59559401]
[1757714601435,0.1,240.89,240.88,14.29559401]
[1757714605341,0.1,240.89,240.88,39.59559401]
[1757714605526,0.1,240.89,240.88,40.30559401]
[1757714606047,0.8,240.89,240.85,33.7]
[1757714606425,0.7,240.88,240.78,0.71]
[1757714606629,0.7,240.88,240.79,47.27559401]
[1757714606830,0.1,240.89,240.8,0.71]
[1757714607228,0.7,240.88,240.81,13.59559401]
[1757714607553,0.7,240.88,240.8,0.71]
[1757714607850,0.7,240.88,240.79,33.68]
[1757714608056,0.7,240.87,240.79,33.68]
[1757714608359,0.7,240.86,240.77,13.59559401]
[1757714608530,0.7,240.86,240.79,13.59559401]
[1757714609757,0.1,240.89,240.79,13.59559401]
[1757714609758,0.1,240.89,240.81,13.59559401]
[1757714610148,0.1,240.89,240.8,0.71]
[1757714610460,0.7,240.88,240.8,0.71]
[1757714611161,26.7,240.88,240.76,34.41]
[1757714611351,0.1,240.89,240.77,14.30559401]
[1757714611553,0.1,240.89,240.8,13.59559401]
[1757714612036,0.1,240.89,240.8,14.30559401]
[1757714612760,0.7,240.88,240.77,14.30559401]
[1757714613235,0.7,240.87,240.77,0.71]
[1757714613442,0.7,240.87,240.76,33.7]
[1757714613635,0.7,240.86,240.76,33.7]
[1757714613835,0.7,240.86,240.76,34.41]
[1757714614258,5.42136317,240.87,240.76,34.41]
[1757714614437,0.7,240.85,240.76,0.71]
[1757714614633,0.7,240.88,240.77,0.71]
[1757714615152,0.1,240.89,240.78,13.59559401]
[1757714615356,0.1,240.89,240.79,0.71]
[1757714615537,0.1,240.89,240.8,13.59559401]
[1757714615737,0.1,240.89,240.84,13.59559401]
[1757714616043,0.1,240.89,240.86,13.59559401]
[1757714616533,0.1,240.89,240.82,0.71]
[1757714616739,0.7,240.88,240.78,0.71]
[1757714616951,0.7,240.88,240.55,23.99480998]
[1757714616952,5.42136317,240.87,240.75,0.71]
[1757714617132,0.7,240.86,240.75,0.71]
[1757714618560,8.37607642,240.85,240.75,0.71]
[1757714618759,0.7,240.84,240.75,0.71]
[1757714622156,0.599299,240.84,240.75,0.71]
[1757714624460,3.04282201,240.85,240.76,13.59559401]
[1757714624639,0.1,240.89,240.76,13.59559401]
[1757714624640,0.7,240.87,240.77,0.71]
[1757714625169,8.37607642,240.83,240.73,0.71]
[1757714625472,8.37607642,240.77,240.69,0.71]
[1757714625679,8.37607642,240.77,240.66,0.71]
[1757714625680,0.7,240.76,240.66,0.71]
[1757714625848,0.7,240.76,240.67,26.0]
[1757714626257,0.7,240.76,240.68,0.67]
[1757714627273,9.07607642,240.76,240.68,0.67]
[1757714627477,3.0530785,240.75,240.69,0.67]
[1757714627773,34.37607642,240.78,240.65,0.67]
[1757714627995,0.7,240.74,240.65,0.67]
[1757714628872,3.05760957,240.73,240.65,0.67]
[1757714629079,3.05760957,240.72,240.65,0.67]
[1757714629280,3.05760957,240.71,240.65,0.67]
[1757714629593,3.05760957,240.7,240.64,32.2]
[1757714629779,3.76311705,240.69,240.63,0.03]
[1757714630082,26.7,240.73,240.64,0.67]
[1757714630275,3.06826106,240.72,240.64,0.67]
[1757714630584,34.37607642,240.7,240.63,0.03]
[1757714630781,3.06826106,240.69,240.63,0.03]
[1757714630982,3.06826106,240.68,240.63,0.03]
[1757714631181,3.06826106,240.67,240.63,0.03]
[1757714631362,3.06826106,240.66,240.63,0.03]
[1757714631673,3.06826106,240.65,240.63,0.03]
[1757714631972,3.06826106,240.64,240.63,0.03]
[1757714632161,3.76826106,240.64,240.63,0.03]
[1757714636994,37.18826106,240.64,240.63,0.03]
[1757714637190,37.16826106,240.64,240.63,0.03]
[1757714637501,45.54433748,240.64,240.63,0.03]
[1757714637678,12.14433748,240.64,240.63,0.03]
[1757714637876,71.54433748,240.64,240.63,0.03]
[1757714638186,63.16826106,240.64,240.63,0.03]
[1757714638488,29.06826106,240.64,240.63,0.03]
[1757714638701,3.06826106,240.64,240.63,0.03]
[1757714639075,3.06826106,240.67,240.63,0.03]
[1757714639275,3.06826106,240.66,240.63,0.03]
[1757714639475,3.06826106,240.65,240.63,0.03]
[1757714639676,3.06826106,240.67,240.63,0.03]
[1757714639871,3.06826106,240.66,240.63,0.03]
[1757714640098,3.06826106,240.65,240.63,0.03]
[1757714640379,3.06826106,240.64,240.63,0.03]
[1757714640580,3.06826106,240.66,240.63,0.03]
[1757714640785,3.06826106,240.65,240.63,0.03]
[1757714640990,9.04607642,240.66,240.63,0.03]
[1757714640991,3.06826106,240.64,240.63,0.03]
[1757714641289,0.67,240.64,240.63,0.03]
[1757714641696,3.06826106,240.64,240.63,0.03]
[1757714642101,3.06826106,240.65,240.63,0.03]
[1757714642686,29.06826106,240.65,240.63,0.03]
[1757714642882,3.06826106,240.64,240.63,0.03]
[1757714643303,3.07076419,240.64,240.63,0.03]
[1757714643616,3.07001623,240.72,240.63,0.71]
[1757714643781,33.34,240.71,240.63,0.71]
[1757714644102,3.07001623,240.7,240.63,0.71]
[1757714645305,33.34,240.71,240.63,0.71]
[1757714645905,35.04607642,240.72,240.63,0.71]
[1757714646110,33.32,240.71,240.63,0.71]
[1757714647422,0.67,240.74,240.63,0.71]
[1757714647585,0.67,240.77,240.64,13.59559401]
[1757714647911,59.3,240.77,240.65,0.68]
[1757714648283,10.38015427,240.85,240.65,0.68]
[1757714648284,0.67,240.8,240.66,13.59559401]
[1757714648486,3.07078438,240.82,240.68,13.59559401]
[1757714648792,33.28,240.81,240.69,0.68]
[1757714649681,9.04607642,240.83,240.7,13.59559401]
[1757714649910,33.97,240.83,240.71,0.68]
[1757714650215,59.97,240.83,240.71,0.68]
[1757714650597,33.97,240.83,240.71,0.68]
[1757714650792,59.97,240.83,240.71,0.68]
[1757714650989,8.37607642,240.8,240.64,26.0]
[1757714651191,8.37607642,240.77,240.68,0.68]
[1757714651408,9.04607642,240.77,240.68,0.68]
[1757714651719,0.67,240.77,240.68,0.68]
[1757714652104,26.0,240.76,240.65,0.68]
[1757714652307,0.67,240.75,240.65,0.68]
[1757714654212,26.0,240.74,240.65,0.68]
[1757714654412,0.67,240.73,240.63,0.03]
[1757714654612,3.7473505,240.73,240.63,0.03]
[1757714655530,26.67,240.76,240.65,13.59559401]
[1757714655704,26.67,240.76,240.66,0.68]
[1757714655901,0.06,240.84,240.71,13.59559401]
[1757714656106,0.06,240.84,240.73,13.59559401]
[1757714656299,26.73,240.84,240.73,13.59559401]
[1757714656502,12.12375534,240.83,240.72,0.68]
[1757714656813,3.07794569,240.82,240.7,0.68]
[1757714657018,0.67,240.81,240.7,0.68]
[1757714657223,3.07794569,240.82,240.71,13.59559401]
[1757714657408,0.73,240.84,240.72,0.68]
[1757714657604,3.80794569,240.84,240.72,0.68]
[1757714658805,26.0,240.82,240.72,0.68]
[1757714659117,26.67,240.82,240.72,0.68]
[1757714659619,0.67,240.82,240.72,0.68]
[1757714659821,26.67,240.82,240.72,0.68]
[1757714660243,26.67,240.82,240.69,14.27559401]
[1757714660405,12.12599262,240.81,240.69,14.27559401]
[1757714660736,3.7499162,240.8,240.69,14.27559401]
[1757714661332,0.67,240.79,240.69,14.27559401]
[1757714662110,0.67,240.79,240.69,13.59559401]
[1757714662421,0.67,240.79,240.7,0.68]
[1757714663410,0.67,240.79,240.68,26.0]
[1757714663627,0.67,240.78,240.68,26.68]
[1757714664421,0.67,240.78,240.69,0.67]
[1757714665950,0.67,240.78,240.64,13.59559401]
[1757714665951,8.37607642,240.76,240.66,0.67]
[1757714666151,3.77488898,240.75,240.66,0.67]
[1757714666341,0.69,240.75,240.68,0.03]
[1757714666549,3.77547423,240.75,240.68,0.03]
[1757714667047,8.37607642,240.74,240.68,0.03]
[1757714667341,26.0,240.76,240.69,0.67]
[1757714668029,0.69,240.78,240.69,0.67]
[1757714668925,26.69,240.78,240.69,0.67]
[1757714669128,3.08584349,240.77,240.69,0.67]
[1757714672241,26.69,240.78,240.69,0.67]
[1757714673251,26.0,240.8,240.7,13.59559401]
[1757714673425,26.69,240.8,240.71,0.67]
[1757714675247,0.69,240.83,240.72,13.59559401]
[1757714675555,0.69,240.83,240.73,0.67]
[1757714675850,26.69,240.83,240.73,0.67]
[1757714677252,0.06,240.84,240.74,13.59559401]
[1757714677550,0.06,240.84,240.75,0.67]
[1757714677926,0.06,240.84,240.76,13.59559401]
[1757714678155,0.06,240.84,240.77,0.67]
[1757714678655,0.06,240.84,240.78,13.59559401]
[1757714678842,0.06,240.84,240.78,0.67]
[1757714679045,0.06,240.84,240.78,14.26559401]
[1757714679552,0.75,240.84,240.76,13.59559401]
[1757714679851,0.75,240.84,240.76,0.67]
[1757714681126,0.06,240.84,240.76,14.26559401]
[1757714681323,0.06,240.84,240.77,0.67]
[1757714685350,0.75,240.84,240.77,0.67]
[1757714685569,0.06,240.84,240.77,0.67]
[1757714688851,0.06,240.84,240.78,13.59559401]
[1757714689039,0.06,240.84,240.79,0.68]
[1757714689761,0.06,240.84,240.8,13.59559401]
[1757714690066,0.06,240.84,240.81,0.68]
[1757714690366,0.06,240.84,240.82,13.59559401]
[1757714690560,0.06,240.84,240.82,46.71559401]
[1757714690759,0.06,240.84,240.83,14.27559401]
[1757714695853,0.06,240.84,240.83,47.31559401]
[1757714697062,0.06,240.84,240.83,14.27559401]
[1757714697378,0.06,240.84,240.83,47.29559401]
[1757714698277,0.06,240.84,240.83,14.27559401]
[1757714698456,0.06,240.84,240.83,47.29559401]
[1757714698848,0.06,240.84,240.83,14.27559401]
[1757714699053,0.06,240.84,240.83,47.27559401]
[1757714700591,0.06,240.84,240.79,26.0]
[1757714700763,0.77,240.84,240.79,26.0]
[1757714701078,0.06,240.84,240.79,26.71]
[1757714701670,0.06,240.84,240.8,47.32559401]
[1757714702072,0.06,240.84,240.82,13.59559401]
[1757714702492,0.1,240.89,240.85,26.0]
[1757714702682,0.1,240.89,240.88,39.59559401]
[1757714703095,0.1,240.89,240.88,40.30559401]
[1757714703898,0.1,240.89,240.88,73.72559401]
[1757714704201,0.1,240.89,240.83,5.58203763]
[1757714704372,0.1,240.89,240.88,14.30559401]
[1757714704566,0.1,240.89,240.88,47.74559401]
[1757714705876,0.1,240.89,240.88,47.76559401]
[1757714706372,0.1,240.89,240.88,48.16073848]
[1757714706689,0.71,241.0,240.89,13.59559401]
[1757714706885,0.71,241.0,240.91,13.59559401]
[1757714707069,0.71,241.0,240.93,13.59559401]
[1757714707667,5.29977749,241.07,240.94,0.71]
[1757714707668,0.71,241.03,240.94,0.71]
[1757714707877,0.71,241.03,240.95,33.46]
[1757714708279,0.71,241.02,240.91,0.71]
[1757714708596,0.71,241.02,240.92,33.46]
[1757714708768,0.71,241.01,240.92,26.0]
[1757714708971,0.71,241.0,240.92,26.0]
[1757714709177,0.71,240.99,240.93,33.46]
[1757714709890,2.22197438,241.03,240.93,33.46]
[1757714710194,0.71,240.98,240.93,33.44]
[1757714710489,0.71,240.97,240.93,33.44]
[1757714710692,0.71,240.97,240.9,0.71]
[1757714710883,0.71,240.96,240.88,13.59559401]
[1757714711187,0.71,240.95,240.88,47.03559401]
[1757714711392,10.37115842,241.06,240.88,47.03559401]
[1757714711393,0.71,241.0,240.92,13.59559401]
[1757714711570,0.71,241.07,240.94,13.59559401]
[1757714711770,2.22197438,241.11,240.95,0.71]
[1757714711974,0.71,241.06,240.95,0.71]
[1757714712391,0.71,241.06,240.96,13.59559401]
[1757714712693,0.71,241.06,240.98,13.59559401]
[1757714712997,0.71,241.06,240.99,33.54]
[1757714714190,0.71,241.05,240.99,33.54]
[1757714714591,0.71,241.07,240.99,33.54]
[1757714715493,0.71,241.07,240.99,34.25]
[1757714719192,3.07661525,241.12,241.0,1.11493775]
[1757714719397,0.7,241.15,241.05,13.59559401]
[1757714719583,0.7,241.15,241.06,34.24]
[1757714719784,0.7,241.15,241.07,0.7]
[1757714720283,3.77597007,241.18,241.07,0.7]
[1757714720585,0.7,241.18,241.07,0.7]
[1757714721294,3.77425911,241.18,241.07,0.7]
[1757714721597,0.7,241.18,241.07,0.7]
[1757714722103,3.77425911,241.18,241.07,0.7]
[1757714722292,3.77425911,241.2,241.08,13.59559401]
[1757714722597,0.7,241.19,241.09,0.7]
[1757714722978,4.14516121,241.25,241.1,13.59559401]
[1757714723178,0.7,241.21,241.11,0.7]
[1757714724084,2.22197438,241.18,241.09,0.67]
[1757714724279,0.7,241.17,241.09,0.67]
[1757714725101,2.22197438,241.14,241.06,0.67]
[1757714725302,0.7,241.13,241.04,0.67]
[1757714727404,2.22197438,241.11,241.0,0.67]
[1757714727704,0.7,241.1,241.0,0.67]
[1757714729594,2.22197438,241.07,240.97,0.67]
[1757714729797,0.7,241.06,240.97,0.67]
[1757714730395,3.77245393,241.06,240.97,0.67]
[1757714730590,0.7,241.06,240.97,0.67]
[1757714731408,2.22197438,241.05,240.94,0.67]
[1757714731602,0.7,241.04,240.94,0.67]
[1757714731788,2.22197438,241.03,240.94,0.67]
[1757714732108,0.7,241.02,240.94,0.67]
[1757714734084,3.77727463,241.06,240.95,13.59559401]
[1757714734296,0.7,241.08,240.97,13.59559401]
[1757714734493,0.7,241.08,240.96,0.67]
[1757714734494,3.07727463,241.1,240.99,13.59559401]
[1757714734687,3.07727463,241.1,241.0,0.67]
[1757714737396,0.7,241.09,241.0,0.67]
[1757714739116,3.07727463,241.11,240.99,13.59559401]
[1757714739289,3.07727463,241.1,241.03,13.59559401]
[1757714739499,3.07727463,241.16,241.03,13.59559401]
[1757714739699,35.54197438,241.18,241.03,13.59559401]
[1757714739700,3.07727463,241.15,241.03,13.59559401]
[1757714739905,3.07727463,241.17,241.03,13.59559401]
[1757714740106,3.07727463,241.16,241.03,13.59559401]
[1757714740305,28.22197438,241.18,241.03,13.59559401]
[1757714740306,3.07727463,241.15,241.03,13.59559401]
[1757714740516,6.54114495,241.17,241.03,13.59559401]
[1757714740818,3.07727463,241.16,241.03,13.59559401]
[1757714741020,3.46387032,241.17,241.03,13.59559401]
[1757714741021,3.07727463,241.15,241.03,13.59559401]
[1757714741209,3.07727463,241.16,241.03,13.59559401]
[1757714741414,3.07727463,241.15,241.03,13.59559401]
[1757714741618,3.07727463,241.14,241.03,13.59559401]
[1757714741817,3.07727463,241.16,241.03,13.59559401]
[1757714742115,3.07727463,241.15,241.03,13.59559401]
[1757714742314,3.07727463,241.14,241.03,13.59559401]
[1757714742520,3.07727463,241.16,241.03,13.59559401]
[1757714742720,3.08238432,241.15,241.03,13.59559401]
[1757714742911,3.08238432,241.14,241.03,13.59559401]
[1757714743126,3.08238432,241.16,241.03,13.59559401]
[1757714743299,3.08238432,241.15,241.03,13.59559401]
[1757714743507,3.08238432,241.14,241.03,13.59559401]
[1757714743706,3.08238432,241.16,241.03,13.59559401]
[1757714743915,3.08238432,241.15,241.03,13.59559401]
[1757714744122,3.08238432,241.14,241.04,0.67]
[1757714744326,3.08238432,241.15,241.04,0.67]
[1757714744628,3.08238432,241.14,241.04,0.67]
[1757714744806,3.08238432,241.15,241.04,0.67]
[1757714745010,3.08238432,241.14,241.04,0.67]
[1757714745330,3.08238432,241.15,241.04,0.67]
[1757714745505,3.08238432,241.14,241.04,0.67]
[1757714745831,0.7,241.14,241.04,0.67]
[1757714746013,3.78238432,241.14,241.04,0.67]
[1757714746216,3.08238432,241.13,241.04,0.67]
[1757714747106,3.08238432,241.12,241.04,0.67]
[1757714747304,3.08238432,241.13,241.04,0.67]
[1757714747604,3.08238432,241.12,241.04,0.67]
[1757714747806,3.08238432,241.13,241.04,0.67]
[1757714748006,3.08238432,241.12,241.04,0.67]
[1757714748247,0.7,241.11,241.02,0.67]
[1757714748514,0.7,241.11,241.02,26.67]
[1757714748722,0.7,241.1,241.02,26.67]
[1757714749038,7.21625464,241.09,241.0,26.0]
[1757714749202,3.75238432,241.08,241.0,26.0]
[1757714749707,0.67,241.07,241.0,26.0]
[1757714750204,3.75238432,241.07,241.0,26.0]
[1757714750407,0.67,241.07,241.0,26.0]
[1757714750725,3.08238432,241.08,241.01,0.67]
[1757714750921,0.67,241.12,241.01,0.67]
[1757714751118,3.08238432,241.11,241.01,0.67]
[1757714751325,3.75238432,241.1,241.01,0.67]
[1757714751519,3.08238432,241.09,241.01,0.67]
[1757714752912,0.67,241.08,241.01,0.67]
[1757714753220,0.67,241.08,240.98,13.59559401]
[1757714753425,0.67,241.07,240.98,14.26559401]
[1757714754524,0.67,241.07,240.99,0.7]
[1757714754909,0.67,241.07,240.96,26.0]
[1757714755109,3.46387032,241.05,240.96,0.7]
[1757714755318,7.23465576,241.04,240.96,0.7]
[1757714755515,3.09288996,241.03,240.96,0.7]
[1757714755840,0.68,241.02,240.96,0.7]
[1757714756138,0.68,241.02,240.94,13.59559401]
[1757714756139,3.77288996,241.02,240.94,13.59559401]
[1757714756314,0.68,241.02,240.94,13.59559401]
[1757714756513,0.68,241.02,240.91,13.59559401]
[1757714756728,0.68,241.02,240.95,0.7]
[1757714757716,3.77361255,241.02,240.95,0.7]
[1757714757926,0.68,241.02,240.95,0.7]
[1757714758521,3.09361255,241.01,240.95,0.7]
[1757714759009,4.14387032,241.06,240.95,0.7]
[1757714759216,3.09349072,241.05,240.95,0.7]
[1757714759418,3.09349072,241.04,240.95,0.7]
[1757714759737,3.09349072,241.03,240.95,0.7]
[1757714760039,29.46387032,241.08,240.96,13.59559401]
[1757714760040,3.09349072,241.07,240.96,13.59559401]
[1757714760244,3.09349072,241.06,240.98,13.59559401]
[1757714760535,3.09349072,241.08,240.99,0.7]
[1757714760734,3.09349072,241.07,240.99,0.7]
[1757714760944,3.09349072,241.06,240.99,0.7]
[1757714761120,3.09349072,241.08,240.99,0.7]
[1757714761309,3.09349072,241.07,240.99,0.7]
[1757714761517,3.09349072,241.08,241.0,13.59559401]
[1757714761734,3.77349072,241.12,241.01,0.7]
[1757714761936,3.09349072,241.11,241.01,0.7]
[1757714762232,0.68,241.12,241.01,0.7]
[1757714762233,3.09349072,241.1,241.02,13.59559401]
[1757714762432,3.09239279,241.11,241.03,0.7]
[1757714762636,3.09239279,241.1,241.03,0.7]
[1757714762830,3.09239279,241.11,241.03,0.7]
[1757714763034,3.09239279,241.1,241.03,0.7]
[1757714763234,3.09239279,241.11,241.03,0.7]
[1757714763435,3.09239279,241.1,241.03,0.7]
[1757714763623,3.09239279,241.11,241.03,0.7]
[1757714763823,3.09239279,241.1,241.03,0.7]
[1757714764025,3.09239279,241.11,241.03,0.7]
[1757714764231,3.09239279,241.1,241.03,0.7]
[1757714764450,3.09239279,241.11,241.03,0.7]
[1757714764637,3.09239279,241.1,241.03,0.7]
[1757714764821,3.09239279,241.11,241.03,0.7]
[1757714765020,3.09239279,241.1,241.03,0.7]
[1757714765223,0.68,241.11,241.03,0.7]
[1757714765421,3.09286212,241.1,241.03,0.7]
[1757714765720,0.68,241.11,241.03,0.7]
[1757714766046,3.09286231,241.1,241.03,0.7]
[1757714766236,0.68,241.11,241.03,0.7]
[1757714766544,3.09327783,241.1,241.03,0.7]
[1757714766740,0.68,241.11,241.03,0.7]
[1757714766946,3.09327783,241.1,241.03,0.7]
[1757714767144,0.68,241.11,241.03,0.7]
[1757714767326,0.06,241.13,241.05,13.59559401]
[1757714767529,0.06,241.13,241.07,13.59559401]
[1757714768047,0.06,241.13,241.08,0.7]
[1757714768342,0.06,241.13,241.09,0.7]
[1757714768741,0.06,241.13,241.1,0.7]
[1757714769538,0.06,241.13,241.06,0.7]
[1757714769844,0.68,241.12,241.04,33.8]
[1757714771535,0.68,241.12,241.05,0.7]
[1757714771938,0.06,241.13,241.06,13.59559401]
[1757714772238,0.06,241.13,241.07,0.7]
[1757714774741,0.74,241.13,241.05,14.29559401]
[1757714774935,0.06,241.13,241.06,0.7]
[1757714777061,0.68,241.12,241.04,33.1]
[1757714777357,3.77204939,241.11,241.03,0.7]
[1757714777562,0.68,241.11,241.03,0.7]
[1757714777758,3.77204939,241.11,241.03,0.7]
[1757714777948,3.09204939,241.1,241.03,0.7]
[1757714778945,3.09228541,241.1,241.03,0.7]
[1757714779148,3.09302269,241.1,241.03,0.7]
[1757714779857,0.68,241.1,241.03,0.7]
[1757714781765,0.06,241.12,241.04,13.59559401]
[1757714782068,0.06,241.12,241.05,0.7]
[1757714782275,3.15302641,241.12,241.05,0.7]
[1757714782441,0.06,241.12,241.05,0.7]
[1757714782646,0.06,241.12,241.06,13.59559401]
[1757714782972,0.06,241.12,241.07,0.7]
[1757714785441,0.68,241.11,241.04,0.67]
[1757714785644,3.09283471,241.1,241.04,0.67]
[1757714785876,3.09283471,241.09,241.04,0.67]
[1757714786169,0.68,241.11,241.04,0.67]
[1757714788448,0.06,241.12,241.05,13.59559401]
[1757714788649,0.06,241.12,241.06,0.67]
[1757714789442,0.06,241.12,241.07,13.59559401]
[1757714789777,0.06,241.12,241.08,0.67]
[1757714790081,0.06,241.12,241.09,0.67]
[1757714790471,0.06,241.12,241.1,0.67]
[1757714793081,0.06,241.12,241.04,13.59559401]
[1757714793082,0.06,241.12,241.11,0.67]
[1757714793766,0.06,241.12,241.09,0.67]
[1757714794169,0.06,241.12,241.1,0.67]
[1757714796254,0.06,241.12,241.11,0.67]
[1757714800961,0.06,241.12,241.11,14.26559401]
[1757714806986,0.06,241.12,241.1,13.59559401]
[1757714807361,0.06,241.12,241.11,0.66]
[1757714813073,0.06,241.12,241.11,14.25559401]
[1757714824594,0.06,241.17,241.15,13.59559401]
[1757714824766,0.06,241.17,241.16,46.84559401]
[1757714825387,3.09744368,241.21,241.17,13.59559401]
[1757714825579,0.71,241.25,241.18,0.67]
[1757714825785,3.09701866,241.24,241.18,0.67]
[1757714825989,3.80701866,241.23,241.16,32.58]
[1757714826292,3.46168106,241.3,241.16,32.58]
[1757714826293,3.80701866,241.22,241.16,32.58]
[1757714826467,2.21540776,241.3,241.16,32.58]
[1757714826468,3.80701866,241.21,241.16,32.58]
[1757714826667,3.80701866,241.2,241.16,32.58]
[1757714826868,3.09701866,241.19,241.16,32.58]
[1757714827170,3.09701866,241.18,241.16,32.58]
[1757714827367,0.71,241.2,241.16,32.58]
[1757714827693,3.09760144,241.19,241.16,32.58]
[1757714827991,3.09760144,241.19,241.11,5.58203763]
[1757714827992,3.80760144,241.18,241.01,4.24318779]
[1757714828177,3.80760144,241.17,241.1,3.46168106]
[1757714828383,3.09806778,241.16,241.11,13.59559401]
[1757714828692,3.09806778,241.15,241.12,0.67]
[1757714828896,0.71,241.18,241.12,0.67]
[1757714829194,3.09796381,241.17,241.12,0.67]
[1757714829400,3.09796381,241.16,241.12,0.67]
[1757714829599,3.09796381,241.15,241.11,13.59559401]
[1757714829776,0.71,241.16,241.11,14.26559401]
[1757714829975,3.09805406,241.15,241.11,14.26559401]
[1757714830186,0.71,241.16,241.11,14.26559401]
[1757714830383,3.09805385,241.15,241.11,14.26559401]
[1757714830601,0.71,241.16,241.11,14.26559401]
[1757714830784,3.09825233,241.15,241.12,0.67]